[Event "Titled Tuesday Blitz February 28 Early 2023"]
[White "Yilmaz, Mustafa"]
[Black "Bogaudinov, Rushan"]
[WhiteFideId "6302718"]
[BlackFideId "4129288"]
[WhiteElo "2523"]
[BlackElo "2063"]
[Result "1-0"]
[Round "02"]
[TimeControl "180+2"]
[Date "2023.02.28"]
[WhiteClock "0:00:03"]
[BlackClock "0:00:08"]

1. d4 {[%clk 0:03:00]}  Nf6 {[%clk 0:02:47]} 2. c4 {[%clk 0:03:00]}  e6 {[%clk 0:02:46]} 3. Nc3 {[%clk 0:03:00]}  d5 {[%clk 0:02:44]} 4. cxd5 {[%clk 0:03:00]}  exd5 {[%clk 0:02:44]} 5. Bg5 {[%clk 0:03:00]}  Be7 {[%clk 0:02:43]} 6. e3 {[%clk 0:03:00]}  O-O {[%clk 0:02:43]} 7. Bd3 {[%clk 0:03:01]}  h6 {[%clk 0:02:42]} 8. Bf4 {[%clk 0:02:59]}  c6 {[%clk 0:02:38]} 9. h3 {[%clk 0:02:58]}  Nbd7 {[%clk 0:02:32]} 10. Nf3 {[%clk 0:02:58]}  b6 {[%clk 0:02:22]} 11. Rc1 {[%clk 0:02:53]}  Bb7 {[%clk 0:02:22]} 12. O-O {[%clk 0:02:54]}  Re8 {[%clk 0:01:48]} 13. a3 {[%clk 0:02:49]}  a5 {[%clk 0:01:42]} 14. Bb1 {[%clk 0:02:38]}  Bf8 {[%clk 0:01:40]} 15. Ne5 {[%clk 0:02:38]}  g6 {[%clk 0:01:34]} 16. Qc2 {[%clk 0:02:33]}  Bg7 {[%clk 0:01:26]} 17. Rfd1 {[%clk 0:02:13]}  Nf8 {[%clk 0:01:20]} 18. Bg3 {[%clk 0:01:49]}  Rc8 {[%clk 0:01:06]} 19. Bh4 {[%clk 0:01:44]}  Qd6 {[%clk 0:00:36]} 20. Qb3 {[%clk 0:01:37]}  c5 {[%clk 0:00:34]} 21. Na4 {[%clk 0:01:12]}  N6d7 {[%clk 0:00:33]} 22. Nxd7 {[%clk 0:01:08]}  Nxd7 {[%clk 0:00:34]} 23. Bg3 {[%clk 0:01:01]}  Qc6 {[%clk 0:00:33]} 24. dxc5 {[%clk 0:00:53]}  d4 {[%clk 0:00:33]} 25. e4 {[%clk 0:00:47]}  b5 {[%clk 0:00:33]} 26. Nb6 {[%clk 0:00:39]}  Nxb6 {[%clk 0:00:33]} 27. cxb6 {[%clk 0:00:35]}  Qxc1 {[%clk 0:00:33]} 28. Rxc1 {[%clk 0:00:28]}  Rxc1+ {[%clk 0:00:34]} 29. Kh2 {[%clk 0:00:29]}  Rxb1 {[%clk 0:00:34]} 30. Qxb5 {[%clk 0:00:29]}  Rc8 {[%clk 0:00:30]} 31. Qd7 {[%clk 0:00:28]}  Rcc1 {[%clk 0:00:26]} 32. Bd6 {[%clk 0:00:15]}  Bxe4 {[%clk 0:00:25]} 33. Qe8+ {[%clk 0:00:15]}  Kh7 {[%clk 0:00:25]} 34. Qxe4 {[%clk 0:00:09]}  Rxb2 {[%clk 0:00:18]} 35. b7 {[%clk 0:00:08]}  Rcb1 {[%clk 0:00:17]} 36. b8=Q {[%clk 0:00:06]}  Rxb8 {[%clk 0:00:17]} 37. Bxb8 {[%clk 0:00:07]}  Rxb8 {[%clk 0:00:18]} 38. Qd5 {[%clk 0:00:07]}  f5 {[%clk 0:00:13]} 39. Qxa5 {[%clk 0:00:07]}  Rb2 {[%clk 0:00:12]} 40. Qd5 {[%clk 0:00:03]}  Rxf2 {[%clk 0:00:11]} 41. a4 {[%clk 0:00:04]}  Rf1 {[%clk 0:00:09]} 42. a5 {[%clk 0:00:04]}  Re1 {[%clk 0:00:10]} 43. h4 {[%clk 0:00:03]}  Be5+ {[%clk 0:00:09]} 44. g3 {[%clk 0:00:03]}  Re2+ {[%clk 0:00:09]} 45. Kg1 {[%clk 0:00:02]}  Re3 {[%clk 0:00:10]} 46. Qf7+ {[%clk 0:00:02]}  Bg7 {[%clk 0:00:09]} 47. a6 {[%clk 0:00:03]}  Ra3 {[%clk 0:00:09]} 48. a7 {[%clk 0:00:03]}  d3 {[%clk 0:00:09]} 49. Qd7 {[%clk 0:00:04]}  Ra1+ {[%clk 0:00:08]} 50. Kf2 {[%clk 0:00:04]}  Ra2+ {[%clk 0:00:09]} 51. Kf3 {[%clk 0:00:04]}  d2 {[%clk 0:00:09]} 52. h5 {[%clk 0:00:04]}  gxh5 {[%clk 0:00:09]} 53. Qxf5+ {[%clk 0:00:04]}  Kg8 {[%clk 0:00:09]} 54. Qd5+ {[%clk 0:00:04]}  Kh7 {[%clk 0:00:09]} 55. Qd3+ {[%clk 0:00:02]}  Kg8 {[%clk 0:00:09]} 56. Qb3+ {[%clk 0:00:01]}  Kh7 {[%clk 0:00:09]} 57. Qb1+ {[%clk 0:00:01]}  Kg8 {[%clk 0:00:09]} 58. Qxa2+ {[%clk 0:00:02]}  Kh7 {[%clk 0:00:08]} 59. Qb1+ {[%clk 0:00:02]}  Kh8 {[%clk 0:00:08]} 60. a8=Q+ {[%clk 0:00:03]} 1-0


[Site "https://www.chess.com"]

[Event "Titled Tuesday Blitz February 28 Early 2023"]
[White "Perez Ponsa, Federico"]
[Black "Pourkashiyan, Atousa"]
[WhiteFideId "117927"]
[BlackFideId "12502014"]
[WhiteElo "2592"]
[BlackElo "2228"]
[Result "1-0"]
[Round "02"]
[TimeControl "180+2"]
[Date "2023.02.28"]
[WhiteClock "0:00:37"]
[BlackClock "0:00:25"]

1. e4 {[%clk 0:02:45]}  c5 {[%clk 0:02:56]} 2. Nf3 {[%clk 0:02:35]}  e6 {[%clk 0:02:55]} 3. d4 {[%clk 0:02:36]}  cxd4 {[%clk 0:02:56]} 4. Nxd4 {[%clk 0:02:36]}  a6 {[%clk 0:02:57]} 5. Nc3 {[%clk 0:02:37]}  Qc7 {[%clk 0:02:57]} 6. Bd3 {[%clk 0:02:37]}  Bc5 {[%clk 0:02:54]} 7. Nb3 {[%clk 0:02:34]}  Be7 {[%clk 0:02:54]} 8. Qg4 {[%clk 0:02:34]}  g6 {[%clk 0:02:53]} 9. Qg3 {[%clk 0:02:34]}  d6 {[%clk 0:02:50]} 10. a4 {[%clk 0:02:33]}  Nc6 {[%clk 0:02:48]} 11. a5 {[%clk 0:02:32]}  Ne5 {[%clk 0:02:43]} 12. O-O {[%clk 0:02:20]}  h5 {[%clk 0:02:36]} 13. f4 {[%clk 0:02:02]}  Nxd3 {[%clk 0:02:18]} 14. cxd3 {[%clk 0:02:03]}  Nf6 {[%clk 0:02:18]} 15. h3 {[%clk 0:01:57]}  h4 {[%clk 0:02:13]} 16. Qf2 {[%clk 0:01:55]}  Nh5 {[%clk 0:02:11]} 17. Be3 {[%clk 0:01:55]}  Ng3 {[%clk 0:02:04]} 18. Rfc1 {[%clk 0:01:54]}  Qd7 {[%clk 0:01:52]} 19. Na4 {[%clk 0:01:43]}  Bd8 {[%clk 0:01:43]} 20. Nb6 {[%clk 0:01:27]}  Bxb6 {[%clk 0:01:43]} 21. Bxb6 {[%clk 0:01:28]}  Qb5 {[%clk 0:01:24]} 22. Rc3 {[%clk 0:01:09]}  e5 {[%clk 0:01:24]} 23. fxe5 {[%clk 0:01:04]}  dxe5 {[%clk 0:01:18]} 24. Bc5 {[%clk 0:00:42]}  Be6 {[%clk 0:01:14]} 25. Qf6 {[%clk 0:00:41]}  Ne2+ {[%clk 0:00:24]} 26. Kh2 {[%clk 0:00:38]}  Kd7 {[%clk 0:00:25]} 27. Qe7+ {[%clk 0:00:36]}  Kc8 {[%clk 0:00:25]} 28. Bd6+ {[%clk 0:00:36]}  Nxc3 {[%clk 0:00:25]} 29. Qc7# {[%clk 0:00:37]} 1-0


[Site "https://www.chess.com"]

[Event "Titled Tuesday Blitz February 28 Early 2023"]
[White "Dinu, Dumitru-Daniel"]
[Black "Lagno, Kateryna"]
[WhiteFideId "1208403"]
[BlackFideId "14109336"]
[WhiteElo "2240"]
[BlackElo "2508"]
[Result "1-0"]
[Round "02"]
[TimeControl "180+2"]
[Date "2023.02.28"]
[WhiteClock "0:00:40"]
[BlackClock "0:01:10"]

1. e4 {[%clk 0:03:00]}  e5 {[%clk 0:02:59]} 2. Nf3 {[%clk 0:03:00]}  Nc6 {[%clk 0:03:00]} 3. Bb5 {[%clk 0:02:59]}  a6 {[%clk 0:03:01]} 4. Ba4 {[%clk 0:02:59]}  d6 {[%clk 0:03:01]} 5. c3 {[%clk 0:02:59]}  Bd7 {[%clk 0:03:01]} 6. O-O {[%clk 0:02:58]}  g6 {[%clk 0:03:00]} 7. d4 {[%clk 0:02:57]}  Nf6 {[%clk 0:03:00]} 8. Bxc6 {[%clk 0:02:51]}  Bxc6 {[%clk 0:02:59]} 9. dxe5 {[%clk 0:02:51]}  dxe5 {[%clk 0:02:47]} 10. Qxd8+ {[%clk 0:02:50]}  Rxd8 {[%clk 0:02:47]} 11. Nxe5 {[%clk 0:02:50]}  Bxe4 {[%clk 0:02:44]} 12. Re1 {[%clk 0:02:18]}  Be7 {[%clk 0:02:26]} 13. Bh6 {[%clk 0:02:06]}  Rd5 {[%clk 0:02:07]} 14. Bg7 {[%clk 0:01:57]}  Rg8 {[%clk 0:02:07]} 15. Bxf6 {[%clk 0:01:57]}  Bxf6 {[%clk 0:02:08]} 16. Ng4 {[%clk 0:01:44]}  Be7 {[%clk 0:01:59]} 17. f3 {[%clk 0:01:43]}  Bxb1 {[%clk 0:01:49]} 18. Nf6+ {[%clk 0:01:39]}  Kd8 {[%clk 0:01:48]} 19. Nxd5 {[%clk 0:01:34]}  Bc5+ {[%clk 0:01:48]} 20. Kh1 {[%clk 0:01:34]}  Bf5 {[%clk 0:01:49]} 21. Rad1 {[%clk 0:01:31]}  Kc8 {[%clk 0:01:42]} 22. Nf6 {[%clk 0:01:28]}  Rh8 {[%clk 0:01:37]} 23. Ne4 {[%clk 0:01:02]}  Be7 {[%clk 0:01:36]} 24. Ng3 {[%clk 0:01:01]}  Be6 {[%clk 0:01:36]} 25. b3 {[%clk 0:00:55]}  a5 {[%clk 0:01:27]} 26. c4 {[%clk 0:00:54]}  Bb4 {[%clk 0:01:23]} 27. Re3 {[%clk 0:00:52]}  h5 {[%clk 0:01:21]} 28. Ne4 {[%clk 0:00:52]}  Be7 {[%clk 0:01:20]} 29. Red3 {[%clk 0:00:49]}  h4 {[%clk 0:01:19]} 30. Kg1 {[%clk 0:00:49]}  Rh5 {[%clk 0:01:17]} 31. Kf2 {[%clk 0:00:47]}  Re5 {[%clk 0:01:12]} 32. Nc3 {[%clk 0:00:45]}  Bc5+ {[%clk 0:01:09]} 33. Kf1 {[%clk 0:00:44]}  h3 {[%clk 0:01:10]} 34. Rd8# {[%clk 0:00:40]} 1-0


[Site "https://www.chess.com"]

[Event "Titled Tuesday Blitz February 28 Early 2023"]
[White "Hajiyev, Kanan"]
[Black "Seo, Jung Min"]
[WhiteFideId "13404148"]
[BlackFideId "1734687"]
[WhiteElo "2103"]
[BlackElo "2468"]
[Result "1-0"]
[Round "02"]
[TimeControl "180+2"]
[Date "2023.02.28"]
[WhiteClock "0:00:34"]
[BlackClock "0:01:28"]

1. d4 {[%clk 0:03:00]}  e6 {[%clk 0:02:52]} 2. c4 {[%clk 0:03:00]}  f5 {[%clk 0:02:51]} 3. Nf3 {[%clk 0:02:59]}  Nf6 {[%clk 0:02:52]} 4. g3 {[%clk 0:02:59]}  b6 {[%clk 0:02:51]} 5. Bg2 {[%clk 0:03:00]}  Bb7 {[%clk 0:02:52]} 6. O-O {[%clk 0:03:01]}  Be7 {[%clk 0:02:52]} 7. b3 {[%clk 0:03:01]}  O-O {[%clk 0:02:52]} 8. Bb2 {[%clk 0:03:02]}  Qe8 {[%clk 0:02:52]} 9. d5 {[%clk 0:03:01]}  Qh5 {[%clk 0:02:50]} 10. Nc3 {[%clk 0:02:54]}  Na6 {[%clk 0:02:48]} 11. e3 {[%clk 0:02:30]}  Nc5 {[%clk 0:02:46]} 12. Nd4 {[%clk 0:02:27]}  Qxd1 {[%clk 0:02:45]} 13. Raxd1 {[%clk 0:02:28]}  g6 {[%clk 0:02:38]} 14. b4 {[%clk 0:02:13]}  Nce4 {[%clk 0:02:37]} 15. Nxe4 {[%clk 0:02:12]}  fxe4 {[%clk 0:02:28]} 16. dxe6 {[%clk 0:02:08]}  Bxb4 {[%clk 0:02:26]} 17. exd7 {[%clk 0:01:55]}  Nxd7 {[%clk 0:02:25]} 18. Nc2 {[%clk 0:01:52]}  Bd6 {[%clk 0:02:25]} 19. Ba3 {[%clk 0:01:47]}  Nc5 {[%clk 0:02:21]} 20. Nd4 {[%clk 0:01:29]}  Ba6 {[%clk 0:02:19]} 21. Nb5 {[%clk 0:01:29]}  Bxb5 {[%clk 0:02:19]} 22. cxb5 {[%clk 0:01:30]}  Rae8 {[%clk 0:02:14]} 23. Rd4 {[%clk 0:01:25]}  Rf5 {[%clk 0:02:10]} 24. Bxc5 {[%clk 0:01:07]}  Rxc5 {[%clk 0:02:10]} 25. Bxe4 {[%clk 0:01:03]}  Rf8 {[%clk 0:02:02]} 26. Rb1 {[%clk 0:00:53]}  Rf6 {[%clk 0:02:01]} 27. Ra4 {[%clk 0:00:50]}  Re5 {[%clk 0:01:53]} 28. f3 {[%clk 0:00:45]}  Bc5 {[%clk 0:01:53]} 29. Rb3 {[%clk 0:00:45]}  g5 {[%clk 0:01:35]} 30. g4 {[%clk 0:00:40]}  h5 {[%clk 0:01:34]} 31. h3 {[%clk 0:00:37]}  hxg4 {[%clk 0:01:34]} 32. hxg4 {[%clk 0:00:38]}  Rh6 {[%clk 0:01:33]} 33. Rxa7 {[%clk 0:00:36]}  Re7 {[%clk 0:01:33]} 34. Ra8+ {[%clk 0:00:33]}  Kg7 {[%clk 0:01:33]} 35. Rd8 {[%clk 0:00:34]}  Rf6 {[%clk 0:01:28]} 36. Rbd3 {[%clk 0:00:34]} 1-0


[Site "https://www.chess.com"]

[Event "Titled Tuesday Blitz February 28 Early 2023"]
[White "Mirzanurov, Bulat"]
[Black "Wagner, Dennis"]
[WhiteFideId "4184521"]
[BlackFideId "24650684"]
[WhiteElo "2019"]
[BlackElo "2470"]
[Result "0-1"]
[Round "02"]
[TimeControl "180+2"]
[Date "2023.02.28"]
[WhiteClock "0:00:25"]
[BlackClock "0:00:08"]

1. e4 {[%clk 0:03:00]}  c5 {[%clk 0:03:00]} 2. Nf3 {[%clk 0:03:00]}  d6 {[%clk 0:03:00]} 3. d4 {[%clk 0:02:59]}  cxd4 {[%clk 0:03:01]} 4. Nxd4 {[%clk 0:02:59]}  Nf6 {[%clk 0:03:02]} 5. f3 {[%clk 0:02:58]}  Nc6 {[%clk 0:02:58]} 6. Nc3 {[%clk 0:02:57]}  e5 {[%clk 0:02:57]} 7. Nb3 {[%clk 0:02:52]}  Be6 {[%clk 0:02:49]} 8. Bg5 {[%clk 0:02:45]}  Be7 {[%clk 0:02:47]} 9. Qd2 {[%clk 0:02:42]}  O-O {[%clk 0:02:37]} 10. O-O-O {[%clk 0:02:40]}  a5 {[%clk 0:02:37]} 11. a4 {[%clk 0:02:38]}  Nb4 {[%clk 0:02:29]} 12. Kb1 {[%clk 0:02:28]}  d5 {[%clk 0:01:24]} 13. Bxf6 {[%clk 0:02:17]}  Bxf6 {[%clk 0:01:22]} 14. Nxd5 {[%clk 0:02:15]}  Nxd5 {[%clk 0:01:16]} 15. exd5 {[%clk 0:02:15]}  Bd7 {[%clk 0:01:16]} 16. Nc5 {[%clk 0:02:06]}  Be8 {[%clk 0:01:07]} 17. Bb5 {[%clk 0:01:56]}  Bxb5 {[%clk 0:01:03]} 18. axb5 {[%clk 0:01:57]}  a4 {[%clk 0:00:55]} 19. d6 {[%clk 0:01:51]}  a3 {[%clk 0:00:55]} 20. Ne4 {[%clk 0:01:25]}  axb2 {[%clk 0:00:54]} 21. Kxb2 {[%clk 0:01:23]}  Ra4 {[%clk 0:00:44]} 22. Ra1 {[%clk 0:01:11]}  Rd4 {[%clk 0:00:43]} 23. Qa5 {[%clk 0:01:09]}  b6 {[%clk 0:00:32]} 24. Qa3 {[%clk 0:01:07]}  Qd7 {[%clk 0:00:29]} 25. Qb3 {[%clk 0:01:04]}  Rc8 {[%clk 0:00:14]} 26. Rhd1 {[%clk 0:01:00]}  Bd8 {[%clk 0:00:10]} 27. Ra4 {[%clk 0:00:38]}  Rxd1 {[%clk 0:00:09]} 28. Rc4 {[%clk 0:00:33]}  Rxc4 {[%clk 0:00:09]} 29. Qxc4 {[%clk 0:00:33]}  Rd4 {[%clk 0:00:09]} 30. Qc6 {[%clk 0:00:33]}  Qxc6 {[%clk 0:00:06]} 31. bxc6 {[%clk 0:00:33]}  Rc4 {[%clk 0:00:06]} 32. c7 {[%clk 0:00:28]}  Bxc7 {[%clk 0:00:06]} 33. dxc7 {[%clk 0:00:25]}  Rxc7 {[%clk 0:00:07]} 34. Kb3 {[%clk 0:00:25]}  f5 {[%clk 0:00:07]} 35. Nd6 {[%clk 0:00:25]}  g6 {[%clk 0:00:08]} 36. Nb5 {[%clk 0:00:25]}  Rc5 {[%clk 0:00:08]} 37. Nc3 {[%clk 0:00:25]}  Kf7 {[%clk 0:00:07]} 38. Kb4 {[%clk 0:00:25]}  Ke6 {[%clk 0:00:07]} 39. Na4 {[%clk 0:00:26]}  Rxc2 {[%clk 0:00:07]} 40. Nxb6 {[%clk 0:00:25]}  Rxg2 {[%clk 0:00:08]} 0-1


[Site "https://www.chess.com"]

[Event "Titled Tuesday Blitz February 28 Early 2023"]
[White "Aydincelebi, Kagan"]
[Black "Tarasova, Viktoriya"]
[WhiteFideId "6361102"]
[BlackFideId "4175840"]
[WhiteElo "2180"]
[BlackElo "2182"]
[Result "1-0"]
[Round "02"]
[TimeControl "180+2"]
[Date "2023.02.28"]
[WhiteClock "0:01:58"]
[BlackClock "0:00:02"]

1. e4 {[%clk 0:02:57]}  e5 {[%clk 0:02:59]} 2. Nf3 {[%clk 0:02:57]}  Nc6 {[%clk 0:02:59]} 3. Bb5 {[%clk 0:02:57]}  Nf6 {[%clk 0:02:58]} 4. d3 {[%clk 0:02:58]}  Bc5 {[%clk 0:02:58]} 5. Bxc6 {[%clk 0:02:57]}  dxc6 {[%clk 0:02:58]} 6. Nbd2 {[%clk 0:02:58]}  Nd7 {[%clk 0:02:57]} 7. Nb3 {[%clk 0:02:58]}  Bd6 {[%clk 0:02:57]} 8. O-O {[%clk 0:02:58]}  c5 {[%clk 0:02:56]} 9. Kh1 {[%clk 0:02:52]}  O-O {[%clk 0:02:55]} 10. Be3 {[%clk 0:02:52]}  f6 {[%clk 0:02:53]} 11. g4 {[%clk 0:02:52]}  g6 {[%clk 0:02:48]} 12. Rg1 {[%clk 0:02:50]}  g5 {[%clk 0:02:18]} 13. Nfd2 {[%clk 0:02:41]}  Rf7 {[%clk 0:02:10]} 14. Nf1 {[%clk 0:02:41]}  b6 {[%clk 0:02:06]} 15. Ng3 {[%clk 0:02:40]}  Nf8 {[%clk 0:02:07]} 16. Nf5 {[%clk 0:02:41]}  Kh8 {[%clk 0:01:42]} 17. h4 {[%clk 0:02:33]}  gxh4 {[%clk 0:01:09]} 18. Nxh4 {[%clk 0:02:32]}  f5 {[%clk 0:00:24]} 19. Nxf5 {[%clk 0:02:31]}  Bxf5 {[%clk 0:00:24]} 20. exf5 {[%clk 0:02:31]}  Qh4+ {[%clk 0:00:06]} 21. Kg2 {[%clk 0:02:31]}  Rg7 {[%clk 0:00:07]} 22. f3 {[%clk 0:02:15]}  e4 {[%clk 0:00:07]} 23. dxe4 {[%clk 0:02:08]}  Qh2+ {[%clk 0:00:05]} 24. Kf1 {[%clk 0:02:08]}  Rd8 {[%clk 0:00:03]} 25. Qe2 {[%clk 0:02:08]}  Qe5 {[%clk 0:00:03]} 26. c3 {[%clk 0:02:05]}  Nd7 {[%clk 0:00:03]} 27. g5 {[%clk 0:02:03]}  c4 {[%clk 0:00:02]} 28. Qxc4 {[%clk 0:02:01]}  Nc5 {[%clk 0:00:02]} 29. Nxc5 {[%clk 0:02:01]}  bxc5 {[%clk 0:00:02]} 30. Rd1 {[%clk 0:01:59]}  Qh2 {[%clk 0:00:02]} 31. Qe2 {[%clk 0:01:58]} 1-0


[Site "https://www.chess.com"]

[Event "Titled Tuesday Blitz February 28 Early 2023"]
[White "Hoffmann, Asa"]
[Black "Hasangatin, Ramil"]
[WhiteFideId "2001470"]
[BlackFideId "4122160"]
[WhiteElo "2117"]
[BlackElo "2310"]
[Result "0-1"]
[Round "02"]
[TimeControl "180+2"]
[Date "2023.02.28"]
[WhiteClock "0:00:10"]
[BlackClock "0:01:22"]

1. d4 {[%clk 0:02:56]}  d6 {[%clk 0:02:58]} 2. e4 {[%clk 0:02:55]}  Nf6 {[%clk 0:02:58]} 3. f3 {[%clk 0:02:55]}  e5 {[%clk 0:02:58]} 4. Ne2 {[%clk 0:02:53]}  Nc6 {[%clk 0:02:58]} 5. Nbc3 {[%clk 0:02:49]}  Be7 {[%clk 0:02:50]} 6. d5 {[%clk 0:02:49]}  Nb8 {[%clk 0:02:49]} 7. Be3 {[%clk 0:02:49]}  c6 {[%clk 0:02:48]} 8. Qd2 {[%clk 0:02:42]}  cxd5 {[%clk 0:02:48]} 9. exd5 {[%clk 0:02:42]}  a6 {[%clk 0:02:48]} 10. a4 {[%clk 0:02:41]}  Qa5 {[%clk 0:02:45]} 11. Nc1 {[%clk 0:02:38]}  O-O {[%clk 0:02:35]} 12. Nb3 {[%clk 0:02:37]}  Qc7 {[%clk 0:02:35]} 13. a5 {[%clk 0:02:30]}  Nbd7 {[%clk 0:02:32]} 14. Bd3 {[%clk 0:02:28]}  Ne8 {[%clk 0:02:30]} 15. O-O {[%clk 0:02:23]}  f5 {[%clk 0:02:29]} 16. f4 {[%clk 0:02:20]}  g6 {[%clk 0:02:23]} 17. Ra4 {[%clk 0:02:11]}  Nef6 {[%clk 0:02:21]} 18. h3 {[%clk 0:01:56]}  Qd8 {[%clk 0:02:12]} 19. Rc4 {[%clk 0:01:48]}  Rf7 {[%clk 0:02:12]} 20. Be2 {[%clk 0:01:38]}  exf4 {[%clk 0:02:10]} 21. Bxf4 {[%clk 0:01:34]}  Ne5 {[%clk 0:02:10]} 22. Rb4 {[%clk 0:01:24]}  Nfd7 {[%clk 0:02:01]} 23. Re1 {[%clk 0:01:15]}  Nc5 {[%clk 0:02:00]} 24. Bxe5 {[%clk 0:01:09]}  dxe5 {[%clk 0:01:59]} 25. Rc4 {[%clk 0:01:01]}  Nxb3 {[%clk 0:01:57]} 26. cxb3 {[%clk 0:01:00]}  Qxa5 {[%clk 0:01:51]} 27. d6 {[%clk 0:00:58]}  Bf8 {[%clk 0:01:52]} 28. Rd1 {[%clk 0:00:53]}  Be6 {[%clk 0:01:52]} 29. Nd5 {[%clk 0:00:51]}  Qxd5 {[%clk 0:01:49]} 30. Qxd5 {[%clk 0:00:48]}  Bxd5 {[%clk 0:01:50]} 31. Rxd5 {[%clk 0:00:48]}  Rd8 {[%clk 0:01:50]} 32. Rc7 {[%clk 0:00:45]}  Rxd6 {[%clk 0:01:44]} 33. Rxf7 {[%clk 0:00:42]}  Kxf7 {[%clk 0:01:32]} 34. Rxe5 {[%clk 0:00:36]}  Kf6 {[%clk 0:01:29]} 35. Re8 {[%clk 0:00:35]}  Bh6 {[%clk 0:01:29]} 36. Bc4 {[%clk 0:00:34]}  Bc1 {[%clk 0:01:23]} 37. Rb8 {[%clk 0:00:30]}  b5 {[%clk 0:01:22]} 38. Bg8 {[%clk 0:00:28]}  Kg7 {[%clk 0:01:22]} 39. b4 {[%clk 0:00:21]}  Bxb2 {[%clk 0:01:22]} 40. Bb3 {[%clk 0:00:10]}  Ba3 {[%clk 0:01:22]} 0-1


[Site "https://www.chess.com"]

[Event "Titled Tuesday Blitz February 28 Early 2023"]
[White "Sadykov, Ramil"]
[Black "Andreev, Konstantin"]
[WhiteFideId "24113590"]
[BlackFideId "24239305"]
[WhiteElo "2245"]
[BlackElo "2106"]
[Result "1-0"]
[Round "02"]
[TimeControl "180+2"]
[Date "2023.02.28"]
[WhiteClock "0:00:04"]
[BlackClock "0:00:23"]

1. d4 {[%clk 0:02:58]}  Nf6 {[%clk 0:02:59]} 2. Nc3 {[%clk 0:02:55]}  e6 {[%clk 0:03:00]} 3. Bf4 {[%clk 0:02:52]}  d5 {[%clk 0:03:00]} 4. e3 {[%clk 0:02:51]}  a6 {[%clk 0:03:00]} 5. g4 {[%clk 0:02:50]}  c5 {[%clk 0:03:00]} 6. g5 {[%clk 0:02:49]}  Nfd7 {[%clk 0:03:00]} 7. h4 {[%clk 0:02:48]}  Nc6 {[%clk 0:03:00]} 8. Nf3 {[%clk 0:02:48]}  b5 {[%clk 0:03:00]} 9. h5 {[%clk 0:02:42]}  Bb7 {[%clk 0:02:59]} 10. Ne2 {[%clk 0:02:32]}  Be7 {[%clk 0:02:58]} 11. Bh3 {[%clk 0:02:22]}  Qb6 {[%clk 0:02:49]} 12. c3 {[%clk 0:02:21]}  O-O-O {[%clk 0:02:44]} 13. a4 {[%clk 0:02:16]}  b4 {[%clk 0:02:43]} 14. dxc5 {[%clk 0:02:06]}  Bxc5 {[%clk 0:02:42]} 15. cxb4 {[%clk 0:01:55]}  Bxb4+ {[%clk 0:02:35]} 16. Kf1 {[%clk 0:01:55]}  Rhe8 {[%clk 0:02:29]} 17. Rc1 {[%clk 0:01:48]}  Nc5 {[%clk 0:02:22]} 18. Ned4 {[%clk 0:01:44]}  f6 {[%clk 0:01:50]} 19. Rxc5 {[%clk 0:01:32]}  Bxc5 {[%clk 0:01:34]} 20. Nxe6 {[%clk 0:01:21]}  Rd7 {[%clk 0:01:30]} 21. Nxg7 {[%clk 0:01:07]}  Rf8 {[%clk 0:01:25]} 22. g6 {[%clk 0:00:55]}  hxg6 {[%clk 0:01:16]} 23. hxg6 {[%clk 0:00:55]}  d4 {[%clk 0:01:16]} 24. Ne6 {[%clk 0:00:44]}  Rg8 {[%clk 0:01:14]} 25. g7 {[%clk 0:00:28]}  Ne5 {[%clk 0:01:04]} 26. Bxe5 {[%clk 0:00:24]}  fxe5 {[%clk 0:00:56]} 27. Nxe5 {[%clk 0:00:24]}  Bxh1 {[%clk 0:00:38]} 28. Nxd7 {[%clk 0:00:08]}  Kxd7 {[%clk 0:00:38]} 29. Nxc5+ {[%clk 0:00:06]}  Kc7 {[%clk 0:00:38]} 30. Qxd4 {[%clk 0:00:06]}  Qd6 {[%clk 0:00:31]} 31. Ne6+ {[%clk 0:00:05]}  Kd7 {[%clk 0:00:30]} 32. Nf4+ {[%clk 0:00:03]}  Kc7 {[%clk 0:00:30]} 33. Qxd6+ {[%clk 0:00:01]}  Kxd6 {[%clk 0:00:30]} 34. Nh5 {[%clk 0:00:02]}  Bf3 {[%clk 0:00:29]} 35. Nf6 {[%clk 0:00:02]}  Bd5 {[%clk 0:00:25]} 36. Nxg8 {[%clk 0:00:02]}  Bxg8 {[%clk 0:00:26]} 37. Bf5 {[%clk 0:00:02]}  Kc5 {[%clk 0:00:23]} 38. a5 {[%clk 0:00:02]}  Kb5 {[%clk 0:00:23]} 39. Bd3+ {[%clk 0:00:01]}  Kxa5 {[%clk 0:00:23]} 40. f4 {[%clk 0:00:02]}  Kb6 {[%clk 0:00:22]} 41. f5 {[%clk 0:00:02]}  a5 {[%clk 0:00:23]} 42. f6 {[%clk 0:00:03]}  Kc5 {[%clk 0:00:23]} 43. Bg6 {[%clk 0:00:03]}  Kb4 {[%clk 0:00:23]} 44. f7 {[%clk 0:00:04]} 1-0


[Site "https://www.chess.com"]

[Event "Titled Tuesday Blitz February 28 Early 2023"]
[White "Vasques, Antonio Pedro Freixial"]
[Black "Issani, Nameer"]
[WhiteFideId "1908332"]
[BlackFideId "2619130"]
[WhiteElo "2212"]
[BlackElo "2622"]
[Result "0-1"]
[Round "02"]
[TimeControl "180+2"]
[Date "2023.02.28"]
[WhiteClock "0:00:18"]
[BlackClock "0:01:27"]

1. e4 {[%clk 0:03:00]}  e5 {[%clk 0:02:59]} 2. Nf3 {[%clk 0:03:00]}  Nc6 {[%clk 0:02:59]} 3. Bc4 {[%clk 0:03:00]}  Bc5 {[%clk 0:02:59]} 4. O-O {[%clk 0:02:59]}  Nf6 {[%clk 0:02:59]} 5. d4 {[%clk 0:03:00]}  Bxd4 {[%clk 0:02:58]} 6. Nxd4 {[%clk 0:02:59]}  Nxd4 {[%clk 0:02:59]} 7. Bg5 {[%clk 0:02:59]}  d6 {[%clk 0:03:00]} 8. f4 {[%clk 0:02:55]}  Ne6 {[%clk 0:03:00]} 9. Bxe6 {[%clk 0:02:53]}  Bxe6 {[%clk 0:03:01]} 10. fxe5 {[%clk 0:02:20]}  dxe5 {[%clk 0:03:02]} 11. Nc3 {[%clk 0:02:20]}  Qd4+ {[%clk 0:02:52]} 12. Qxd4 {[%clk 0:02:11]}  exd4 {[%clk 0:02:52]} 13. Nb5 {[%clk 0:01:46]}  O-O-O {[%clk 0:02:43]} 14. e5 {[%clk 0:01:27]}  Rd5 {[%clk 0:02:35]} 15. Nxd4 {[%clk 0:01:04]}  Rxe5 {[%clk 0:02:31]} 16. Bxf6 {[%clk 0:01:03]}  gxf6 {[%clk 0:02:30]} 17. Rxf6 {[%clk 0:01:01]}  Bd5 {[%clk 0:02:11]} 18. Raf1 {[%clk 0:00:30]}  Rhe8 {[%clk 0:02:09]} 19. b3 {[%clk 0:00:29]}  a6 {[%clk 0:02:03]} 20. c4 {[%clk 0:00:28]}  Be4 {[%clk 0:01:53]} 21. Rxf7 {[%clk 0:00:27]}  Rd8 {[%clk 0:01:53]} 22. Nf3 {[%clk 0:00:26]}  Ree8 {[%clk 0:01:52]} 23. Ng5 {[%clk 0:00:25]}  Bc6 {[%clk 0:01:49]} 24. h3 {[%clk 0:00:24]}  Rd2 {[%clk 0:01:49]} 25. R1f2 {[%clk 0:00:24]}  Rd1+ {[%clk 0:01:49]} 26. Kh2 {[%clk 0:00:25]}  Kb8 {[%clk 0:01:49]} 27. Nxh7 {[%clk 0:00:24]}  Ree1 {[%clk 0:01:48]} 28. Kg3 {[%clk 0:00:24]}  Re3+ {[%clk 0:01:47]} 29. Kh2 {[%clk 0:00:24]}  Ree1 {[%clk 0:01:45]} 30. Ng5 {[%clk 0:00:25]}  Rh1+ {[%clk 0:01:45]} 31. Kg3 {[%clk 0:00:25]}  Rd3+ {[%clk 0:01:45]} 32. Nf3 {[%clk 0:00:25]}  Rc1 {[%clk 0:01:43]} 33. Rd2 {[%clk 0:00:24]}  Re3 {[%clk 0:01:40]} 34. h4 {[%clk 0:00:22]}  Rh1 {[%clk 0:01:38]} 35. Rh7 {[%clk 0:00:22]}  Re4 {[%clk 0:01:36]} 36. Rd8+ {[%clk 0:00:21]}  Ka7 {[%clk 0:01:35]} 37. Rxc7 {[%clk 0:00:22]}  Re2 {[%clk 0:01:35]} 38. Rf8 {[%clk 0:00:22]}  Kb6 {[%clk 0:01:34]} 39. Rg7 {[%clk 0:00:20]}  Ra1 {[%clk 0:01:34]} 40. Rf6 {[%clk 0:00:20]}  Raxa2 {[%clk 0:01:33]} 41. Kf4 {[%clk 0:00:20]}  Rab2 {[%clk 0:01:32]} 42. h5 {[%clk 0:00:20]}  Re1 {[%clk 0:01:28]} 43. h6 {[%clk 0:00:21]}  Rh1 {[%clk 0:01:28]} 44. h7 {[%clk 0:00:21]}  Rxb3 {[%clk 0:01:28]} 45. g3 {[%clk 0:00:20]}  Rxf3+ {[%clk 0:01:27]} 46. Kg5 {[%clk 0:00:21]}  Rxg3+ {[%clk 0:01:27]} 47. Kf4 {[%clk 0:00:18]}  Rxg7 {[%clk 0:01:27]} 0-1


[Site "https://www.chess.com"]